Cogmind - Beta 10.2 @@@ ROGUE MODE // 2021.06.19 @ 18:34:46 Player: cavemonk Result: Self-destructed Performance ------------- Evolutions (1) 500 Regions Visited (6) 1200 Robots Destroyed (83) 415 Value Destroyed (1483) 1483 Prototype IDs (27) 540 Alien Tech Used (0) 0 Bonus (337) 337 TOTAL SCORE: 4475 Bonus ------- High Alert Combat Kills 16 Follower Combat Kills 21 Aligned with FarCom 300 Cogmind --------- Core Integrity 304/400 Matter 300/300 Energy 275/275 System Corruption 4% Temperature Cool (0) Movement Treading (200) Ox2 Location -8/Mines Parts ------- > --- POWER (1) -------- Deuterium Engine > --- PROPULSION (2) --- Light Treads Improved Treads > --- UTILITY (4) ------ Large Storage Unit Large Storage Unit High-capacity Storage Unit Medium Armor Plating > --- WEAPON (2) ------- EM Pulse Cannon EM Pulse Cannon > --- INVENTORY (24) --- Deuterium Engine Light Treads Light Treads Light Treads Light Treads Light Treads Large Storage Unit Large Storage Unit Large Matter Pod (150) Advanced Sensor Array Advanced Sensor Array Heavy EM Pulse Gun Heavy Assault Rifle Improved Assault Rifle Light Cannon Rocket Launcher Rocket Launcher Axe Peak State ------------ > --- POWER ------------ Heavy Ion Engine > --- PROPULSION ------- Light Treads Light Treads > --- UTILITY ---------- Large Storage Unit Large Storage Unit Medium Armor Plating Hardlight Generator > --- WEAPON ----------- Improved EM Shotgun Improved EM Shotgun > --- INVENTORY -------- Improved Ion Engine Light Treads Light Treads Light Treads Light Treads Large Storage Unit Advanced Sensor Array Advanced Sensor Array Medium Armor Plating Reclamation Unit Heavy Assault Rifle Light Cannon Light Cannon Rocket Launcher Rocket Launcher Axe [Rating: 20] Favorites ----------- Power Ion Engine Engine Ion Engine Propulsion Light Treads Treads Light Treads Leg Aluminum Leg Wheel Wheel Utility Large Storage Unit Device Hardlight Generator Storage Large Storage Unit Protection Medium Armor Plating Weapon EM Pulse Cannon Energy Gun Improved EM Shotgun Energy Cannon EM Pulse Cannon Ballistic Gun Assault Rifle Ballistic Cannon Light Cannon Launcher Grenade Launcher Special Weapon Mining Laser Impact Weapon Great Maul Build | -11 -10 -10 -9 -9 -9 -8 ------- Run | Scr Mat Min Mat Min Exi Min Slots Evolved 2 | . . . 2 . . . Power . | . . . . . . . Propulsion . | . . . . . . . Utility 2 | . . . 2 . . . Weapon . | . . . . . . . Parts Attached 95 | 4 34 10 40 5 2 . Power 5 | . 2 . 3 . . . Engine 5 | . 2 . 3 . . . Core . | . . . . . . . Reactor . | . . . . . . . Propulsion 19 | 2 10 . 7 . . . Treads 14 | 1 6 . 7 . . . Leg . | . . . . . . . Wheel 5 | 1 4 . . . . . Hover . | . . . . . . . Flight . | . . . . . . . Utility 19 | 1 4 2 10 . 2 . Device 5 | 1 1 1 2 . . . Storage 6 | . 3 1 . . 2 . Processor . | . . . . . . . Hackware . | . . . . . . . Protection 8 | . . . 8 . . . Artifact . | . . . . . . . Weapon 52 | 1 18 8 20 5 . . Energy Gun 4 | . 2 . 2 . . . Energy Cannon 5 | . . . 2 3 . . Ballistic Gun 12 | 1 9 . 2 . . . Ballistic Cannon 14 | . 2 4 8 . . . Launcher 13 | . 2 4 5 2 . . Special Weapon 3 | . 3 . . . . . Impact Weapon 1 | . . . 1 . . . Slashing Weapon . | . . . . . . . Piercing Weapon . | . . . . . . . Special Melee Weapon . | . . . . . . . Unidentified Prototypes 1 | . . . 1 . . . Parts Lost 2 | . . . 2 . . . Power . | . . . . . . . Propulsion . | . . . . . . . Utility 2 | . . . 2 . . . Weapon . | . . . . . . . Highest Loss Streak 1 | . . . 1 . . . Average Slot Usage (%) 99 | . 99 99 99 100 99 100 Engine 12 | . 14 14 10 11 11 11 Treads 23 | . 23 28 22 22 22 22 Wheel 1 | . 4 . . . . . Device 4 | . 7 . 8 . . . Storage 23 | . 20 27 22 22 31 33 Protection 9 | . . . 13 22 12 11 Energy Gun 2 | . 2 . 4 . . . Energy Cannon 6 | . . . 2 21 22 22 Ballistic Gun 6 | . 21 . 1 . . . Ballistic Cannon 8 | . 3 21 13 . . . Launcher 1 | . . 7 . . . . Naked Turns . | . . . . . . . Heaviest Build 92 | 13 43 45 63 63 92 92 Greatest Support 43 | 20 40 40 43 43 43 43 Greatest Overweight (x) 2 | 1 1 1 1 1 2 2 Average Overweight (x) 1 | . . . 1 1 1 2 Largest Inventory Capacity 24 | 6 16 16 16 16 24 24 Average Capacity 15 | 6 10 15 16 16 22 24 Most Carried 18 | 6 16 16 16 16 18 18 Average Carried 13 | 4 7 15 15 16 16 18 Final Capacity 24 | 6 16 16 16 16 24 24 Final Carried 18 | 4 16 16 16 16 18 18 Class Distribution -------------------- 87% | Mutant 10% | Hauler-Mutant Dominant Class ---------------- Mutant | -10/Materials Mutant | -10/Mines Mutant | -9/Materials Mutant | -9/Mines Hauler-Mutant | -9/Exiles Hauler-Mutant | -8/Mines Resources | -11 -10 -10 -9 -9 -9 -8 ----------- Run | Scr Mat Min Mat Min Exi Min Matter Collected 2582 | 242 415 235 1305 101 284 . Remotely . | . . . . . . . Salvage Created 2003 | 95 405 173 1119 211 . . Parts 140 | 4 22 14 84 16 . . Haulers Intercepted 8 | . 2 . 6 . . . Recyclers Shooed 4 | . 2 1 1 . . . Parts Field Recycled . | . . . . . . . Retrieved Matter . | . . . . . . . Parts Self-Destructed . | . . . . . . . Prevented . | . . . . . . . Kills | -11 -10 -10 -9 -9 -9 -8 ------- Run | Scr Mat Min Mat Min Exi Min Combat Hostiles Destroyed 53 | . 7 4 30 12 . . Guns 12 | . 7 . 5 . . . Cannons 21 | . . 1 18 2 . . AOE 20 | . . 3 7 10 . . Classes Destroyed 10 | 2 4 1 3 . . . Worker 8 | . 1 3 4 . . . Builder 5 | . . 1 3 1 . . Tunneler 3 | 2 . . 1 . . . Hauler 8 | . 2 . 6 . . . Recycler 4 | 1 1 1 1 . . . Watcher 2 | . . . 2 . . . Swarmer 26 | . 3 3 12 8 . . Grunt 16 | . 4 1 8 3 . . Brawler 2 | . . . 1 1 . . Sentry 9 | . . . 9 . . . Best Kill Streak 5 | 2 3 4 5 5 . . Combat Bots Only 5 | . 3 3 4 5 . . Max Kills in Single Turn 3 | 1 1 2 2 3 . . Gunslinging . | . . . . . . . Exploded 3 | . . 2 1 3 . . Melee . | . . . . . . . Uniques/NPCs Destroyed . | . . . . . . . Combat | -11 -10 -10 -9 -9 -9 -8 -------- Run | Scr Mat Min Mat Min Exi Min Damage Taken 1754 | . 285 141 1225 81 . 22 Core 160 | . 22 42 96 . . . Absorbed by Shields 219 | . . . 219 . . . Core Remaining (%) 87 | 100 . 74 . . . . Volleys Fired 208 | 8 60 8 122 10 . . Largest 2 | 2 2 2 2 2 . . Hottest 126 | 100 100 70 90 126 . . Shots Fired 370 | 16 103 11 228 12 . . Gun 148 | 16 94 . 38 . . . Cannon 191 | . 2 6 179 4 . . Launcher 26 | . 2 5 11 8 . . Special 5 | . 5 . . . . . Kinetic 260 | 2 63 6 189 . . . Thermal 52 | 14 38 . . . . . Explosive 26 | . 2 5 11 8 . . Electromagnetic 32 | . . . 28 4 . . Robot Hit Streak 18 | 11 17 9 18 12 . . Robot Miss Streak 4 | 4 4 1 4 . . . Penetration Max . | . . . . . . . Secondary Targets 1 | . 1 . . . . . Max Gunslinging Chain 1 | . 1 . . . . . Shots Hit Robots 233 | 11 70 9 139 4 . . Core Hits 120 | 5 24 11 65 15 . . Critical Hits 3 | . . . 3 . . . Critical Kills 3 | . . . 3 . . . Critical Parts Destroyed . | . . . . . . . Melee Attacks 5 | . . . 5 . . . Impact 5 | . . . 5 . . . Slashing . | . . . . . . . Piercing . | . . . . . . . Sneak Attacks 1 | . . . 1 . . . Combat Hostiles . | . . . . . . . Follow-up Attacks . | . . . . . . . Damage Inflicted 5997 | 129 833 624 3502 893 . 16 Guns 1279 | 129 706 . 444 . . . Cannons 2553 | . 35 93 2353 72 . . Explosions 1689 | . . 456 460 773 . . Melee 69 | . . . 69 . . . Ramming 407 | . 92 75 176 48 . 16 Kinetic 2968 | 17 405 93 2453 . . . Thermal 481 | 112 336 . 33 . . . Explosive 1656 | . . 456 427 773 . . Electromagnetic 416 | . . . 344 72 . . Impact 69 | . . . 69 . . . Slashing . | . . . . . . . Piercing . | . . . . . . . Highest Corruption 4 | . 2 2 4 4 4 4 Average Corruption 3 | . 1 2 3 4 4 4 Corruption Purged . | . . . . . . . Effects 113 | . 18 10 41 21 20 3 Message Errors 40 | . 10 4 10 8 7 1 Matter Fused 18 | . . . 8 6 4 . Heat Flow Errors 13 | . 2 2 3 3 3 . Energy Discharges 18 | . 4 2 7 1 4 . Data Loss (minor) 17 | . 1 2 8 2 2 2 Targeting Errors 7 | . 1 . 5 1 . . Overload Shots . | . . . . . . . Overflow Damage 183 | . . 9 99 75 . . Projectiles 40 | . . . 40 . . . Explosions 102 | . . 9 25 68 . . Melee 41 | . . . 34 7 . . Knockbacks 9 | . . 2 7 . . . Impact . | . . . . . . . Kinetic 7 | . . 1 6 . . . Secondary 2 | . . 1 1 . . . Self-Inflicted Damage 122 | . . 83 39 . . . Shots 5 | . . 4 1 . . . Rammed 56 | . 17 13 20 4 . 2 Targets Rammed 58 | . 17 14 21 4 . 2 Kicked . | . . . . . . . Crushed 2 | . . 1 1 . . . Highest Temperature 440 | 214 188 234 440 203 253 . Average Temperature 78 | 96 59 67 80 91 106 . Received Heat Transfer 409 | . 90 18 301 . . . Effects 3 | . . . 3 . . . Shutdowns 1 | . . . 1 . . . Short Circuit 2 | . . . 2 . . . Siege Activations . | . . . . . . . Robots Corrupted . | . . . . . . . Combat Hostiles . | . . . . . . . Parts Fried 5 | . . . 5 . . . Impact Corruptions 5 | . . . 3 2 . . Robots Melted . | . . . . . . . Combat Hostiles . | . . . . . . . Parts Melted 4 | 2 1 1 . . . . Heat Transferred 1382 | 333 999 . 50 . . . Parts Sabotaged . | . . . . . . . Parts Stolen . | . . . . . . . Parts Stripped . | . . . . . . . Power Chain Reactions 1 | . . . 1 . . . Missiles Intercepted . | . . . . . . . Alert | -11 -10 -10 -9 -9 -9 -8 ------- Run | Scr Mat Min Mat Min Exi Min Peak Influence 446 | 15 203 132 334 446 . . Initial 91 | . 9 19 . 91 . . Average 116 | 10 43 57 166 230 . . Maximum Alert Level 2 | . 1 . 1 2 . . Low Security (%) 72 | 100 97 100 51 40 . 100 Level 1 25 | . 2 . 48 47 . . Level 2 1 | . . . . 12 . . Level 3 . | . . . . . . . Level 4 . | . . . . . . . Level 5 . | . . . . . . . High Security . | . . . . . . . Max Security . | . . . . . . . Squads Dispatched 7 | . 1 1 4 1 . . Investigation 2 | . . 1 1 . . . Extermination . | . . . . . . . Reinforcement 5 | . 1 . 3 1 . . Assault . | . . . . . . . Garrison . | . . . . . . . Intercept . | . . . . . . . Construction Impeded 2 | . . . 1 1 . . Haulers Reinforced . | . . . . . . . Stealth | -11 -10 -10 -9 -9 -9 -8 --------- Run | Scr Mat Min Mat Min Exi Min Distress Signals 7 | . 2 . 4 1 . . Communications Jammed . | . . . . . . . Distress Signals . | . . . . . . . Times Spotted 120 | . 36 8 65 10 . 1 Peak Tracking Total 6 | . 4 3 6 3 . 1 Tactical Retreats 14 | . 10 1 2 1 . . Traps | -11 -10 -10 -9 -9 -9 -8 ------- Run | Scr Mat Min Mat Min Exi Min Traps Triggered 6 | . 3 . 3 . . . Indirectly . | . . . . . . . Trap Hack Attempts . | . . . . . . . Triggered . | . . . . . . . Disarmed . | . . . . . . . Reprogrammed . | . . . . . . . Reused . | . . . . . . . Traps Extracted . | . . . . . . . Installed . | . . . . . . . Triggered . | . . . . . . . Machines | -11 -10 -10 -9 -9 -9 -8 ---------- Run | Scr Mat Min Mat Min Exi Min Machines Disabled 5 | . . . 3 2 . . Max in Single Turn 2 | . . . 2 1 . . Machines Sabotaged . | . . . . . . . Garrisons Compromised . | . . . . . . . Overloaded Fab Kills . | . . . . . . . Fab Network Shutdowns . | . . . . . . . Hacking | -11 -10 -10 -9 -9 -9 -8 --------- Run | Scr Mat Min Mat Min Exi Min Machines Accessed 25 | . 8 1 15 . 1 . Terminals 16 | . 6 . 10 . . . Fabricators . | . . . . . . . Repair Stations 3 | . 1 . 2 . . . Recycling Units 3 | . 1 . 2 . . . Scanalyzers 1 | . . . 1 . . . Garrison Access . | . . . . . . . Total Hacks 73 | . 37 1 34 . 1 . Successful 43 | . 26 1 15 . 1 . Failed 30 | . 11 . 19 . . . Catastrophic 7 | . 2 . 5 . . . Database Lockouts . | . . . . . . . Manual 42 | . 22 . 19 . 1 . Terminals 48 | . 23 . 25 . . . Fabricators . | . . . . . . . Repair Stations 17 | . 13 . 4 . . . Recycling Units 4 | . 1 . 3 . . . Scanalyzers 2 | . . . 2 . . . Garrison Access . | . . . . . . . Terminal Hacks 17 | . 8 1 7 . 1 . Part Schematic 1 | . 1 . . . . . Robot Analysis 2 | . 2 . . . . . Prototype ID Bank 2 | . 2 . . . . . Open Door 1 | . . 1 . . . . Branch Access Points 1 | . . . 1 . . . Terminal Index 1 | . 1 . . . . . Alert Level 1 | . . . 1 . . . Unreport Threat 3 | . . . 3 . . . Locate Traps 2 | . 1 . 1 . . . Hauler Manifests 1 | . . . 1 . . . Zone Layout 1 | . 1 . . . . . EX-Prototype ID Bank 1 | . . . . . 1 . Fabricator Hacks . | . . . . . . . Repair Station Hacks 13 | . 11 . 2 . . . Scan Component 7 | . 5 . 2 . . . Repair 5 | . 5 . . . . . Refit 1 | . 1 . . . . . Recycling Unit Hacks 1 | . 1 . . . . . Retrieve Matter 1 | . 1 . . . . . Scanalyzer 2 | . . . 2 . . . Insert Component 1 | . . . 1 . . . Analyze 1 | . . . 1 . . . Garrison Access Hacks . | . . . . . . . Unauthorized Hacks 10 | . 6 . 4 . . . Terminals 8 | . 5 . 3 . . . Track 4 | . 2 . 2 . . . Botnet 2 | . 2 . . . . . Disrupt 1 | . . . 1 . . . Operators 1 | . 1 . . . . . Fabricators . | . . . . . . . Repair Stations 1 | . 1 . . . . . Mechanics 1 | . 1 . . . . . Recycling Units 1 | . . . 1 . . . Mask 1 | . . . 1 . . . Scanalyzers . | . . . . . . . Garrison Access . | . . . . . . . Data Cores Recovered . | . . . . . . . Used . | . . . . . . . Hacking Detections 20 | . 7 . 13 . . . Full Trace Events 1 | . . . 1 . . . Feedback Events . | . . . . . . . Feedback Blocked . | . . . . . . . Robot Schematics Acquired . | . . . . . . . Robots Built . | . . . . . . . Matter . | . . . . . . . Time . | . . . . . . . Total Robot Build Rating . | . . . . . . . Part Schematics Acquired 2 | . 1 . 1 . . . Parts Built . | . . . . . . . Matter . | . . . . . . . Time . | . . . . . . . Total Part Build Rating . | . . . . . . . Parts Repaired 5 | . 5 . . . . . Time 136 | . 136 . . . . . Parts Recycled . | . . . . . . . Recycled Matter . | . . . . . . . Retrieved Matter 334 | . 334 . . . . . Retrieved Components . | . . . . . . . Parts Scanalyzed 1 | . . . 1 . . . Part Schematics Acquired 1 | . . . 1 . . . Parts Damaged . | . . . . . . . Bothacking | -11 -10 -10 -9 -9 -9 -8 ------------ Run | Scr Mat Min Mat Min Exi Min Used RIF Installer . | . . . . . . . Robots Hacked . | . . . . . . . Non-combat . | . . . . . . . Combat . | . . . . . . . Robot Hacks Applied . | . . . . . . . Relay Couplers Released . | . . . . . . . Robots Rewired . | . . . . . . . Allies Hacked . | . . . . . . . Hacks Repelled . | . . . . . . . Allies | -11 -10 -10 -9 -9 -9 -8 -------- Run | Scr Mat Min Mat Min Exi Min Total Allies 3 | . . 3 . . . . Largest Group 3 | . . 3 . . . . Highest-Rated Group 40 | . . 40 . . . . Highest-Rated Ally 16 | . . 16 . . . . Total Orders . | . . . . . . . Ally Attacks 16 | . . 16 . . . . Total Damage 115 | . . 115 . . . . Kills 3 | . . 3 . . . . Allies Corrupted . | . . . . . . . Allies Melted . | . . . . . . . Intel | -11 -10 -10 -9 -9 -9 -8 ------- Run | Scr Mat Min Mat Min Exi Min Robot Analysis Total 2 | . 2 . . . . . Derelict Logs Recovered 2 | . . 1 . 1 . . Drone Launches . | . . . . . . . Drone Recoveries . | . . . . . . . Exploration | -11 -10 -10 -9 -9 -9 -8 ------------- Run | Scr Mat Min Mat Min Exi Min Turns Passed 8473 | 91 2221 1081 3039 975 830 236 Spaces Moved 4166 | 43 1182 548 1335 521 421 116 Core . | . . . . . . . Treads 3638 | 30 667 548 1335 521 421 116 Legs 3 | 3 . . . . . . Wheels 525 | 10 515 . . . . . Hover . | . . . . . . . Flight . | . . . . . . . Fastest Speed 90 | 90 90 160 180 180 180 200 Average Speed 169 | 140 138 178 180 180 196 200 Slowest Speed 200 | 160 180 180 180 180 200 200 Overloaded Moves . | . . . . . . . Propulsion Burnouts . | . . . . . . . Robots Hopped . | . . . . . . . Cave-ins Triggered . | . . . . . . . Exploration Rate (%) 65 | 3 82 79 96 97 78 26 Regions Visited 6 Branch Regions 4 Pre-discovered Areas 1 | . . . . 1 . . Known Exits Taken 1 | . . . 1 . . . Unknown Exits Taken 5 | 1 1 1 . 1 1 . Scrap Searched 3 | . . 1 . 2 . . Spaces Dug 26 | . 5 . 21 . . . Terrain Destroyed 239 | . 23 57 72 87 . . Melee 4 | . . . 4 . . . Projectile 19 | . 5 . 14 . . . AOE 216 | . 18 57 54 87 . . Terrain Rammed . | . . . . . . . Walls Destroyed . | . . . . . . . Machines Disabled . | . . . . . . . Actions | -11 -10 -10 -9 -9 -9 -8 --------- Run | Scr Mat Min Mat Min Exi Min Total 5143 | 58 1643 630 1726 542 426 118 Wait 487 | . 316 27 143 1 . . Move 4160 | 42 1181 547 1334 520 420 116 Hop . | . . . . . . . Pick Up 58 | 1 18 13 23 1 2 . Fast Attach 24 | 1 10 3 9 . 1 . Attach 15 | 2 3 . 10 . . . Detach 3 | . . 1 2 . . . Swap 56 | 1 21 7 21 5 1 . Drop 69 | 3 17 10 36 1 2 . Fire 208 | 8 60 8 122 10 . . Melee 5 | . . . 5 . . . Ram . | . . . . . . . Kick . | . . . . . . . Crush 58 | . 17 14 21 4 . 2 Escape Stasis . | . . . . . . . Rewire . | . . . . . . . Trap . | . . . . . . . Miscellaneous . | . . . . . . . Route ------- -11/Scrapyard -10/Materials (discovered 3 exits: *Mat x2 / *Min) -10/Mines -9/Materials (discovered 5 exits: [*Mat x3] / *Min x2) -9/Mines (discovered 3 exits: [*Mat x2] / *Exi) -9/Exiles -8/Mines History --------- Turn | Location | Event 20 | -11/Scrapyard | Discovered new exit (range 3) 92 | -11/Scrapyard | Entered Materials 302 | -10/Materials | Discovered new exit (range 7) 306 | -10/Materials | Build established: Mutant 870 | -10/Materials | Discovered new exit (range 15) 916 | -10/Materials | Repaired Lgt. Treads 943 | -10/Materials | Repaired Lgt. Treads 970 | -10/Materials | Repaired Assault Rifle 997 | -10/Materials | Repaired Lgt. Treads 1030 | -10/Materials | Repaired Imp. Terrain Scanner 1525 | -10/Materials | Discovered new exit (range 16) 2313 | -10/Materials | Entered Mines 2333 | -10/Mines | Met a Derelict bent on vengeance 2337 | -10/Mines | Discovered new exit (range 6) 2351 | -10/Mines | Assisted by bots powering up and referring to "LRC-V3" 2441 | -10/Mines | Learned Materials terminal intel 3033 | -10/Mines | Found a hidden stash of uninstalled traps 3052 | -10/Mines | Assembled infested the area 3078 | -10/Mines | Met a Derelict shopkeep closing up shop 3394 | -10/Mines | Entered Materials 3394 | -9/Materials | Evolved 2 slots: Utility x2 3395 | -9/Materials | Loaded intel: 12 terminal locations 3697 | -9/Materials | Discovered new exit (range 13) 4244 | -9/Materials | Discovered new exit (range 16) 4419 | -9/Materials | Discovered new exit (range 13) 4726 | -9/Materials | Discovered new exit (range 5) 5227 | -9/Materials | Identified exit to Mines 5293 | -9/Materials | Discovered new exit (range 16) 6433 | -9/Materials | Entered Mines 6516 | -9/Mines | Discovered new exit (range 10) 6561 | -9/Mines | Learned location of Storage (-8) 6664 | -9/Mines | Discovered new exit (range 10) 6714 | -9/Mines | Received a Rocket Launcher from a helpful Derelict 6869 | -9/Mines | Deemed a non-threat by the Exiles lab entrance 6869 | -9/Mines | Discovered new exit (range 5) 7408 | -9/Mines | Entered Exiles 7455 | -9/Exiles | Met 8R-AWN 7482 | -9/Exiles | Met EX-HEX 7582 | -9/Exiles | Met EX-DEC 7619 | -9/Exiles | Visited The Gauntlet 7774 | -9/Exiles | Met EX-BIN 7857 | -9/Exiles | Build established: Hauler-Mutant 7870 | -9/Exiles | Aligned with FarCom system 7872 | -9/Exiles | Given EX-Vault access code 7920 | -9/Exiles | Opened EX-Vault 7966 | -9/Exiles | Warned to stay clear of 0b10 Research branches 8218 | -9/Exiles | Discovered new exit (range 11) 8238 | -9/Exiles | Entered Mines 8474 | -8/Mines | Self-destructed Last Messages --------------- 08007_ System corrupted: Matter fused (-5). 08067_ System corrupted: Energy discharge (-63). 08091_ System corrupted: Energy discharge (-90). 08130_ Extracted 142 matter. 08132_ Acquired Lrg. Matter Pod. 08133_ Extracted 142 matter. 08183_ Acquired Lrg. Storage Unit. 08188_ System corrupted: Heat flow error (+200). 08218_ EXIT=FOUND 08238_ System corrupted: Energy discharge (-85). LOCATION=UNKNOWN GOAL=ESCAPE 08238_ Receiving FarCom transmissions... 08296_ System corrupted: Component data lost. 08347_ 5RGOP0E3N05UMY#2|I 08378_ Slammed into U-05 Engineer. 08379_ K-01 Serf collects debris. 08448_ System corrupted: Component data lost. 08452_ Slammed into T-07 Excavator. Map ----- +----------------------------------------------------+ | | | | | | | | | | | | | | | | | | | | | | | | | | | | | | | | | | | | | | | ?????????????????????????????????????????????????? | | ?????????????????????????????????????????????????? | | ?????????????????????????????????????????????????? | | ?????????????????????????????????????????????????? | | ?????????????????????????????????????????????????? | | ???????????????????????####### """ ?????????????? | | ???????????????????????# @ """ ?????????????? | | ???????????????????????# #### h ?????????? | | ???????????????????????# #??????????????????????? | | ???????????????????????# #??????????????????????? | | ??????????????????????## #?????????????????? ???? | | ?????????????????????## #????????????????? ?? | | ?????????????????????# ####????????????? ? | | ?????????????????????## #????????????? ? | | ?????????????????????## #???????????? # | | ????????????????????## ###%#???????????# #? | | ????????????????????# #?# #????????### #? | | ????????????????????# ##?# ###????## #? | | ????????????????????# u##??# #????# #?? | | ????????????????????## ##??### #???## #?? | | ?????????????????????# #????# ###?# ???? | | ?????????????????????# #????# ### #??????? | | ????????????????????## #????# ## #???????? | | ??????????????????### ##????### ## ##??????? | | ?????????????????## ##??????# ### #??????? | | ????????????###### ##?????# #?# ##?????? | | ????????????# ##????# ### """ #?????? | | ????????????# ## ##???# """ #?????? | | ???????????????# #???# ### """ ##?????? | | ???????????????## ## #####???# #?# #??????? | | ????????????????###?# #???????# #?# ##??????? | +----------------------------------------------------+ Best States ------------- Heat Dissipation 28 Energy Generation 14 Energy Capacity 280 Matter Stores 300 Matter Capacity 300 Sight Range 16 Terrain Scan Range 16 Terrain Scan Density 10 Armor Coverage 375 Evasion (%) 42 Recoil Reduction 2 Item Schematics ----------------- Hcp. Storage Unit | -10/Materials | Hacked Adv. Sensor Array | -9/Materials | Scanalyzed Robot Schematics ------------------ None Fabricated ------------ Nothing Alien Tech Used ----------------- None Achievements -------------- None Challenges ------------ None Game ------ Seed VortexPointPick Manual? 0 Play Time 00:57:06 Cumulative 231.2 hours Start 2021.06.19 @ 16:43:33 End 2021.06.19 @ 18:34:46 Sessions 1 Manual Loads 0 Difficulty Rogue Special Mode None Game No. 166 Rogue 166 Adventurer 0 Explorer 0 Win Type - Total 4 Types 4/0/0/0/0/0/0/0/0 Lore% 48 Gallery% 71 Achievement% 55 Wizard Run 0 Options --------- ASCII 0 Keyboard 0 Movement Numpad Keybinds 0 Fullscreen 2 Font 18/TerminusBold Map View 76x50 Tactical HUD 1 Map Filters NONE Filters NONE Steam 1 RUN: e5faf0c5-93a9-4bcb-84af-2bb39c40badf